bitfinex/quotes_BTCUSD_20250614
["timestamp","ask_amount","ask_price","bid_price","bid_amount"]
[1749871525511,0.06347053,105350.0,105340.0,0.41369278]
[1749871525716,0.02403053,105350.0,105340.0,0.41369278]
[1749871525918,0.053979,105350.0,105340.0,0.39590714]
[1749871526334,0.06347053,105350.0,105340.0,0.39590714]
[1749871526534,0.06347053,105350.0,105340.0,0.41369275]
[1749871526762,0.053979,105350.0,105340.0,0.41369275]
[1749871526974,0.06347053,105350.0,105340.0,0.41369275]
[1749871527182,0.06347053,105350.0,105340.0,0.39590714]
[1749871527504,0.06347053,105350.0,105340.0,0.41369275]
[1749871527888,0.053979,105350.0,105340.0,0.39590714]
[1749871528037,0.053979,105350.0,105340.0,0.41369275]
[1749871528244,0.06347044,105350.0,105340.0,0.41369275]
[1749871528465,0.07296197,105350.0,105340.0,0.41369275]
[1749871528862,0.07296197,105350.0,105340.0,0.39590714]
[1749871529068,0.04448765,105350.0,105340.0,0.41369275]
[1749871529288,0.04448765,105350.0,105340.0,0.41369246]
[1749871529539,0.04448765,105350.0,105340.0,0.39590714]
[1749871529965,0.04448765,105350.0,105340.0,0.41369244]
[1749871530165,0.04448765,105350.0,105340.0,0.41369245]
[1749871531959,0.04448765,105350.0,105340.0,0.41369247]
[1749871532164,0.04448765,105350.0,105340.0,0.39590714]
[1749871532346,0.04448765,105350.0,105340.0,0.4136924]
[1749871532584,0.04448765,105350.0,105340.0,0.39590714]
[1749871532789,0.04448765,105350.0,105340.0,0.41369238]
[1749871533200,0.04448765,105350.0,105340.0,0.39590714]
[1749871533400,0.04448765,105350.0,105340.0,0.41369238]
[1749871534026,0.04448765,105350.0,105340.0,0.41369237]
[1749871534434,0.04448765,105350.0,105340.0,0.39590714]
[1749871534658,0.04448765,105350.0,105340.0,0.4136917]
[1749871534841,0.04448765,105350.0,105340.0,0.39590714]
[1749871535241,0.04448765,105350.0,105340.0,0.4136914]
[1749871535693,0.04448765,105350.0,105340.0,0.39590714]
[1749871536126,0.04436765,105350.0,105340.0,0.4136914]
[1749871536337,0.04436765,105350.0,105340.0,0.75369093]
[1749871536543,0.00504765,105350.0,105340.0,0.76440914]
[1749871536949,0.00504765,105350.0,105340.0,0.78219242]
[1749871537151,0.00504765,105350.0,105340.0,0.78219238]
[1749871537288,0.00504765,105350.0,105340.0,0.76440914]
[1749871537492,0.00504765,105350.0,105340.0,0.78219237]
[1749871537704,0.00504765,105350.0,105340.0,0.76440914]
[1749871537948,0.00504765,105350.0,105340.0,0.78212559]
[1749871538149,0.00504765,105350.0,105340.0,0.78212556]
[1749871538564,0.00504765,105350.0,105340.0,0.78212543]
[1749871538984,0.00504765,105350.0,105340.0,0.78212552]
[1749871539200,0.00504765,105350.0,105340.0,0.76440914]
[1749871539397,0.00504765,105350.0,105340.0,0.78212551]
[1749871539614,0.00504765,105350.0,105340.0,0.82824491]
[1749871539814,0.00504765,105350.0,105340.0,0.81052867]
[1749871540019,0.00504765,105350.0,105340.0,0.8282445]
[1749871540333,0.00504765,105350.0,105340.0,0.82824452]
[1749871540494,0.00504765,105350.0,105340.0,0.92439374]
[1749871541055,0.00504765,105350.0,105340.0,0.92439377]
[1749871541356,0.00504765,105350.0,105340.0,0.90667789]
[1749871541570,0.00504765,105350.0,105340.0,0.92438306]
[1749871543066,0.00504765,105350.0,105340.0,0.92438307]
[1749871543325,0.00504765,105350.0,105340.0,0.90667789]
[1749871543541,0.00504765,105350.0,105340.0,0.92438307]
[1749871543750,0.00504765,105350.0,105340.0,0.8485394]
[1749871543953,0.00504765,105350.0,105340.0,0.83083422]
[1749871544158,0.00504765,105350.0,105340.0,0.84853934]
[1749871544364,0.00504765,105350.0,105340.0,0.84853931]
[1749871544571,0.00504765,105350.0,105340.0,0.9243828]
[1749871544791,0.00504765,105350.0,105340.0,0.92438278]
[1749871545001,0.00504765,105350.0,105340.0,0.92438274]
[1749871545215,0.00504765,105350.0,105340.0,0.92438279]
[1749871545418,0.00504765,105350.0,105340.0,0.92438271]
[1749871545625,0.00504765,105350.0,105340.0,0.92438244]
[1749871546036,0.00504765,105350.0,105340.0,0.92438235]
[1749871546241,0.00504765,105350.0,105340.0,0.92438216]
[1749871547467,0.00504765,105350.0,105340.0,0.90667789]
[1749871547679,0.00504765,105350.0,105340.0,0.92438216]
[1749871547897,0.00504765,105350.0,105340.0,0.92438187]
[1749871548114,0.00504765,105350.0,105340.0,0.92438147]
[1749871548320,0.00504765,105350.0,105340.0,1.00792377]
[1749871548501,4.765e-05,105350.0,105340.0,1.00792365]
[1749871548732,4.765e-05,105350.0,105340.0,0.99022079]
[1749871548935,4.765e-05,105350.0,105340.0,1.00792371]
[1749871549354,4.765e-05,105350.0,105340.0,1.00492367]
[1749871549564,4.765e-05,105350.0,105340.0,1.00492371]
[1749871549777,4.765e-05,105350.0,105340.0,1.0099237]
[1749871549983,4.765e-05,105350.0,105340.0,0.99222079]
[1749871550197,4.765e-05,105350.0,105340.0,1.0049081]
[1749871550406,4.765e-05,105350.0,105340.0,1.00990811]
[1749871550608,4.765e-05,105350.0,105340.0,0.99222079]
[1749871550816,4.765e-05,105350.0,105340.0,1.0099081]
[1749871551028,4.765e-05,105350.0,105340.0,1.00990809]
[1749871551445,4.765e-05,105350.0,105340.0,0.99222079]
[1749871552183,4.765e-05,105350.0,105340.0,1.00990813]
[1749871552665,4.765e-05,105350.0,105340.0,1.0099081]
[1749871553569,4.765e-05,105350.0,105340.0,0.99222079]
[1749871560416,4.765e-05,105350.0,105340.0,0.98481072]
[1749871560947,4.765e-05,105350.0,105340.0,0.889965]
[1749871561620,4.765e-05,105350.0,105340.0,0.98481072]
[1749871570628,4.765e-05,105350.0,105340.0,1.04935157]
[1749871570829,0.08198519,105380.0,105370.0,0.21827734]
[1749871570976,0.08203292,105380.0,105370.0,0.51204593]
[1749871572178,0.08203292,105380.0,105370.0,0.51304593]
[1749871572380,0.08803292,105380.0,105370.0,0.51304593]
[1749871574110,0.08803292,105380.0,105370.0,0.52261191]
[1749871576032,0.08803292,105380.0,105370.0,0.54039162]
[1749871576603,0.07263292,105380.0,105370.0,0.54039162]
[1749871576813,0.07263292,105380.0,105370.0,0.54038186]
[1749871577207,0.07263292,105380.0,105370.0,0.55628181]
[1749871577409,0.07263292,105380.0,105370.0,0.53851191]
[1749871577609,0.07263292,105380.0,105370.0,0.55628181]
[1749871577943,0.07263292,105380.0,105370.0,0.55628185]
[1749871578349,0.07263292,105380.0,105370.0,0.5562818]
[1749871578529,0.07263292,105380.0,105370.0,0.55628176]
[1749871578711,0.07263292,105380.0,105370.0,0.55628182]
[1749871578904,0.07263292,105380.0,105370.0,0.55628181]
[1749871579102,0.07263292,105380.0,105370.0,0.53851191]
[1749871579370,0.07263292,105380.0,105370.0,0.55628181]
[1749871579933,0.07263292,105380.0,105370.0,0.55627257]
[1749871580351,0.07263292,105380.0,105370.0,0.52261191]
[1749871580723,0.07263292,105380.0,105370.0,0.54037258]
[1749871580920,0.07263292,105380.0,105370.0,0.52261191]
[1749871581333,0.07263292,105380.0,105370.0,0.54037258]
[1749871581545,0.07263292,105380.0,105370.0,0.52261191]
[1749871581966,0.07263292,105380.0,105370.0,0.54037258]
[1749871582163,0.07263292,105380.0,105370.0,0.52261191]
[1749871582571,0.07263292,105380.0,105370.0,0.54037257]
[1749871582776,0.07263292,105380.0,105370.0,0.52261191]
[1749871582974,0.07263292,105380.0,105370.0,0.54037257]
[1749871583174,0.07263292,105380.0,105370.0,0.52261191]
[1749871583390,0.07263292,105380.0,105370.0,0.54037257]
[1749871583920,0.07263292,105380.0,105370.0,0.54037241]
[1749871584055,0.07263292,105380.0,105370.0,0.54037238]
[1749871584471,0.07263292,105380.0,105370.0,0.52261191]
[1749871585315,0.07263292,105380.0,105370.0,0.54037238]
[1749871585831,0.07263292,105380.0,105370.0,0.54037233]
[1749871586012,0.07263292,105380.0,105370.0,0.54037232]
[1749871587442,0.07263292,105380.0,105370.0,0.88037232]
[1749871587651,0.07263292,105380.0,105370.0,0.91327232]
[1749871587857,0.07263292,105380.0,105370.0,0.94176417]
[1749871588776,0.07263292,105380.0,105370.0,0.94176405]
[1749871589170,0.07263292,105380.0,105370.0,0.92516405]
[1749871589377,0.07263292,105380.0,105370.0,0.9251634]
[1749871589579,0.07263292,105380.0,105370.0,0.92516349]
[1749871589867,0.07263292,105380.0,105370.0,0.72763666]
[1749871590072,0.08813292,105380.0,105370.0,0.84681708]
[1749871590364,0.07263292,105380.0,105370.0,0.8645767]
[1749871590793,0.07263292,105380.0,105370.0,0.86457669]
[1749871591227,0.07263292,105380.0,105370.0,0.8645767]
[1749871591647,0.07263292,105380.0,105370.0,0.84681708]
[1749871591857,0.07263292,105380.0,105370.0,0.8645767]
[1749871592473,0.07263292,105380.0,105370.0,0.84681708]
[1749871592689,0.07263292,105380.0,105370.0,0.8645767]
[1749871592893,0.07263292,105380.0,105370.0,0.84681708]
[1749871593094,0.07263292,105380.0,105370.0,0.8645767]
[1749871593943,0.07263292,105380.0,105370.0,0.86459641]
[1749871594890,0.07263292,105380.0,105370.0,0.84681708]
[1749871595108,0.07263292,105380.0,105370.0,0.86459641]
[1749871595535,0.07263292,105380.0,105370.0,0.96074563]
[1749871595753,0.07263292,105380.0,105370.0,0.86459641]
[1749871596031,0.07263292,105380.0,105370.0,0.84681708]
[1749871596290,0.07263292,105380.0,105370.0,0.86459641]
[1749871596754,0.07263292,105380.0,105370.0,0.84681708]
[1749871596969,0.07263292,105380.0,105370.0,0.86459641]
[1749871597869,0.07263292,105380.0,105370.0,0.94041742]
[1749871598114,0.07263292,105380.0,105370.0,1.03656664]
[1749871598542,0.07263292,105380.0,105370.0,1.01878731]
[1749871598748,0.07263292,105380.0,105370.0,1.05286639]
[1749871600234,0.07263292,105380.0,105370.0,1.05286819]
[1749871600492,0.07263292,105380.0,105370.0,1.03508731]
[1749871600715,0.07263292,105380.0,105370.0,1.0528679]
[1749871600954,0.07263292,105380.0,105370.0,1.05038731]
[1749871601156,0.07263292,105380.0,105370.0,1.06816597]
[1749871601368,0.07263292,105380.0,105370.0,1.06816628]
[1749871601596,0.07263292,105380.0,105370.0,1.06816603]
[1749871601815,0.07263292,105380.0,105370.0,1.05038731]
[1749871602029,0.07263292,105380.0,105370.0,1.06816603]
[1749871602236,0.06991292,105380.0,105370.0,0.89962603]
[1749871602462,0.08651292,105380.0,105370.0,0.88332602]
[1749871602696,0.08651292,105380.0,105370.0,1.01878731]
[1749871602905,0.08651292,105380.0,105370.0,1.03656609]
[1749871603115,0.08651292,105380.0,105370.0,1.03656623]
[1749871603531,0.08651292,105380.0,105370.0,1.01878731]
[1749871603791,0.08651292,105380.0,105370.0,1.03656794]
[1749871604009,0.08651292,105380.0,105370.0,1.03656737]
[1749871604182,0.08651292,105380.0,105370.0,1.03656734]
[1749871604419,0.08651292,105380.0,105370.0,1.01878731]
[1749871604601,0.08651292,105380.0,105370.0,1.03656734]
[1749871604802,0.08651292,105380.0,105370.0,1.01878731]
[1749871605211,0.08651292,105380.0,105370.0,1.03656729]
[1749871605615,0.08651292,105380.0,105370.0,1.01878731]
[1749871605806,0.08651292,105380.0,105370.0,1.03656729]
[1749871606010,0.08651292,105380.0,105370.0,1.01878731]
[1749871606213,0.08651292,105380.0,105370.0,1.03656729]
[1749871606569,0.02264773,105380.0,105370.0,1.03657702]
[1749871606768,0.02264773,105380.0,105370.0,0.9404278]
[1749871607178,0.00604773,105380.0,105370.0,0.9404278]
[1749871607398,0.00604773,105380.0,105370.0,0.94042777]
[1749871607813,0.00604773,105380.0,105370.0,0.94042776]
[1749871608226,0.00604773,105380.0,105370.0,0.78718776]
[1749871608418,0.00604773,105380.0,105370.0,0.94042776]
[1749871609202,0.00604773,105380.0,105370.0,0.94042784]
[1749871609678,0.00604773,105380.0,105370.0,0.92263809]
[1749871609883,0.00604773,105380.0,105370.0,1.03657703]
[1749871610325,0.00604773,105380.0,105370.0,0.94042781]
[1749871610645,0.02234773,105380.0,105370.0,0.94042781]
[1749871611268,0.02234773,105380.0,105370.0,0.94042784]
[1749871612264,0.02234773,105380.0,105370.0,0.94042785]
[1749871612620,0.02234773,105380.0,105370.0,0.92263809]
[1749871613074,0.02234773,105380.0,105370.0,0.94042339]
[1749871613481,0.02234773,105380.0,105370.0,0.9404234]
[1749871613899,0.02234773,105380.0,105370.0,0.92263809]
[1749871614112,0.02234773,105380.0,105370.0,1.03657262]
[1749871614258,0.00604773,105380.0,105370.0,1.03657223]
[1749871614467,0.00604773,105380.0,105370.0,1.05197196]
[1749871614773,0.00604773,105380.0,105370.0,1.03418731]
[1749871614969,0.00604773,105380.0,105370.0,1.05197195]
[1749871615383,0.00604773,105380.0,105370.0,1.05197187]
[1749871616736,0.00604773,105380.0,105370.0,1.03418731]
[1749871616897,0.00604773,105380.0,105370.0,1.05197187]
[1749871617945,0.00604773,105380.0,105370.0,1.03418731]
[1749871618144,0.00604773,105380.0,105370.0,1.05197187]
[1749871618352,0.00604773,105380.0,105370.0,1.03418731]
[1749871618490,0.00604773,105380.0,105370.0,1.05197188]
[1749871618740,0.00604773,105380.0,105370.0,1.05197187]
[1749871618945,0.00604773,105380.0,105370.0,1.03418731]
[1749871619148,0.00604773,105380.0,105370.0,1.05197188]
[1749871619404,0.00604773,105380.0,105370.0,1.05197129]
[1749871620236,0.00604773,105380.0,105370.0,1.05197128]
[1749871621091,0.00604773,105380.0,105370.0,1.05197125]
[1749871621711,0.00604773,105380.0,105370.0,1.05197126]
[1749871621911,0.00604773,105380.0,105370.0,1.06777126]
[1749871622137,0.00604773,105380.0,105370.0,0.91453126]
[1749871622339,0.00604773,105380.0,105370.0,1.04998731]
[1749871622743,0.00604773,105380.0,105370.0,1.06777117]
[1749871622991,0.00604773,105380.0,105370.0,1.0677711]
[1749871623174,0.00604773,105380.0,105370.0,1.06777211]
[1749871623384,0.00604773,105380.0,105370.0,1.04998731]
[1749871623597,0.00604773,105380.0,105370.0,1.06777213]
[1749871623805,4.773e-05,105380.0,105370.0,1.06777213]
[1749871624001,0.00404773,105380.0,105370.0,1.06777214]
[1749871624337,0.00404773,105380.0,105370.0,1.04998731]
[1749871624472,0.00404773,105380.0,105370.0,1.06677162]
[1749871624669,0.00404773,105380.0,105370.0,1.06677145]
[1749871624906,0.00404773,105380.0,105370.0,1.06877145]
[1749871625646,0.00404773,105380.0,105370.0,1.06877147]
[1749871625781,0.00404773,105380.0,105370.0,1.06877145]
[1749871626191,0.00404773,105380.0,105370.0,1.06877141]
[1749871626838,0.00404773,105380.0,105370.0,1.05098731]
[1749871627044,0.00404773,105380.0,105370.0,1.06877085]
[1749871627244,0.00404773,105380.0,105370.0,1.06877087]
[1749871627582,0.00404773,105380.0,105370.0,1.05098731]
[1749871627799,0.00404773,105380.0,105370.0,1.06876237]
[1749871628007,0.00404773,105380.0,105370.0,1.06876236]
[1749871628385,0.00404773,105380.0,105370.0,1.06876237]
[1749871628586,0.00404773,105380.0,105370.0,1.06876235]
[1749871629021,0.00404773,105380.0,105370.0,1.0687624]
[1749871629459,0.00404773,105380.0,105370.0,0.99294055]
[1749871629661,0.00404773,105380.0,105370.0,1.08778307]
[1749871629844,0.00404773,105380.0,105370.0,1.08778033]
[1749871630046,0.00089334,105380.0,105370.0,0.99293461]
[1749871630263,0.00089334,105380.0,105370.0,1.05747546]
[1749871630460,0.00089334,105380.0,105370.0,1.15221057]
[1749871631152,0.00089334,105380.0,105370.0,1.05747546]
[1749871631615,0.00089334,105380.0,105370.0,1.15217275]
[1749871632064,0.00089334,105380.0,105370.0,1.15217185]
[1749871632703,0.00089334,105380.0,105370.0,1.15213103]
[1749871633078,0.00089334,105380.0,105370.0,1.15213104]
[1749871636396,0.00089334,105380.0,105370.0,1.13440444]
[1749871636629,0.00089334,105380.0,105370.0,1.15213104]
[1749871636830,0.00089334,105380.0,105370.0,1.13440444]
[1749871637008,0.00089334,105380.0,105370.0,1.15213104]
[1749871637417,0.00089334,105380.0,105370.0,1.13440444]
[1749871649518,0.00089334,105380.0,105370.0,1.13240444]
[1749871649923,0.0151,105400.0,105390.0,0.55823592]
[1749871650075,0.01514772,105400.0,105390.0,0.88587641]
[1749871650623,0.01514772,105400.0,105390.0,0.91436241]
[1749871651170,0.00504772,105400.0,105390.0,0.92936241]
[1749871652491,4.772e-05,105400.0,105390.0,0.92936241]
[1749871652734,0.00304772,105400.0,105390.0,1.0050579]
[1749871652957,0.00304772,105400.0,105390.0,1.02279046]
[1749871653163,0.00304772,105400.0,105390.0,1.02279023]
[1749871653378,0.00304772,105400.0,105390.0,1.02379023]
[1749871653781,0.00304772,105400.0,105390.0,1.0060579]
[1749871653987,0.00304772,105400.0,105390.0,1.0237902]
[1749871654599,0.00304772,105400.0,105390.0,1.0087902]
[1749871654813,0.00304772,105400.0,105390.0,0.85558986]
[1749871654814,0.01844772,105400.0,105390.0,0.85558986]
[1749871655015,0.01844772,105400.0,105390.0,1.00878986]
[1749871655149,0.01844772,105400.0,105390.0,0.9910579]
[1749871655359,0.01844772,105400.0,105390.0,1.00878995]
[1749871655768,0.01844772,105400.0,105390.0,0.9910579]
[1749871656139,0.01844772,105400.0,105390.0,1.00879375]
[1749871656359,0.01844772,105400.0,105390.0,1.00879356]
[1749871656566,0.01844772,105400.0,105390.0,0.9910579]
[1749871656766,0.01844772,105400.0,105390.0,1.00879351]
[1749871656986,0.01825795,105400.0,105390.0,1.0087935]
[1749871657476,0.01825795,105400.0,105390.0,1.00882998]
[1749871657900,0.01825795,105400.0,105390.0,0.9910579]
[1749871658133,0.01825795,105400.0,105390.0,1.00882998]
[1749871659006,0.01825795,105400.0,105390.0,0.9910579]
[1749871659181,0.01825795,105400.0,105390.0,1.00882998]
[1749871659398,0.01825795,105400.0,105390.0,0.9910579]
[1749871659564,0.01825795,105400.0,105390.0,1.00882998]
[1749871660815,0.01825795,105400.0,105390.0,0.9910579]
[1749871661042,0.01825795,105400.0,105390.0,1.00882998]
[1749871661725,0.01825795,105400.0,105390.0,0.9910579]
[1749871661897,0.01825795,105400.0,105390.0,1.00882998]
[1749871662703,0.01825795,105400.0,105390.0,1.00882783]
[1749871663349,0.01825795,105400.0,105390.0,0.9910579]
[1749871663715,0.01825795,105400.0,105390.0,1.00882783]
[1749871665187,0.01825795,105400.0,105390.0,1.00878783]
[1749871666024,0.01825795,105400.0,105390.0,0.9910179]
[1749871666529,0.01825795,105400.0,105390.0,1.00878611]
[1749871666732,0.01825795,105400.0,105390.0,0.9910179]
[1749871666937,0.01825795,105400.0,105390.0,1.00878443]
[1749871667095,0.01825795,105400.0,105390.0,0.85562433]
[1749871667313,0.03355795,105400.0,105390.0,0.9305856]
[1749871667509,0.03355795,105400.0,105390.0,0.93058561]
[1749871667728,0.03355795,105400.0,105390.0,0.93058563]
[1749871668359,0.03355795,105400.0,105390.0,0.93058837]
[1749871669123,0.03355795,105400.0,105390.0,0.91281917]
[1749871669525,0.03355795,105400.0,105390.0,0.93058837]
[1749871669755,0.01825795,105400.0,105390.0,1.02673759]
[1749871670157,0.01825795,105400.0,105390.0,1.00896839]
[1749871670358,0.01825795,105400.0,105390.0,1.02673759]
[1749871670772,0.01825795,105400.0,105390.0,1.00896839]
[1749871670997,0.01825795,105400.0,105390.0,1.02673759]
[1749871671125,0.01825795,105400.0,105390.0,1.00896839]
[1749871671322,0.01825795,105400.0,105390.0,1.02673762]
[1749871673024,0.01825795,105400.0,105390.0,1.00896839]
[1749871673171,0.01825795,105400.0,105390.0,1.02673768]
[1749871673669,0.01825795,105400.0,105390.0,1.02674122]
[1749871674701,0.01825795,105400.0,105390.0,1.02674121]
[1749871675061,0.01825795,105400.0,105390.0,1.00896839]
[1749871675426,0.01825795,105400.0,105390.0,1.02674121]
[1749871675628,0.01825795,105400.0,105390.0,1.00896839]
[1749871675825,0.01825795,105400.0,105390.0,1.02674121]
[1749871677290,0.01825795,105400.0,105390.0,1.02674106]
[1749871677655,0.01825795,105400.0,105390.0,1.00896839]
[1749871677864,0.01825795,105400.0,105390.0,1.02674105]
[1749871678063,0.01825795,105400.0,105390.0,1.00896839]
[1749871678263,0.01825795,105400.0,105390.0,1.02674105]
[1749871678487,0.01825795,105400.0,105390.0,1.00896839]
[1749871679028,0.01825795,105400.0,105390.0,1.0267414]
[1749871679572,0.01825795,105400.0,105390.0,1.00896839]
[1749871679774,0.01825795,105400.0,105390.0,1.0267414]
[1749871680241,0.01825795,105400.0,105390.0,1.02674005]
[1749871680432,0.01825795,105400.0,105390.0,1.0267409]
[1749871680637,0.01825795,105400.0,105390.0,1.02674377]
[1749871680839,0.01825795,105400.0,105390.0,1.02674485]
[1749871681047,0.01825795,105400.0,105390.0,1.02674484]
[1749871681254,0.01825795,105400.0,105390.0,1.00896839]
[1749871681463,0.01825795,105400.0,105390.0,1.02674597]
[1749871681673,0.01825795,105400.0,105390.0,1.00896839]
[1749871681886,0.01825795,105400.0,105390.0,1.02674597]
[1749871684789,0.01825795,105400.0,105390.0,1.00896839]
[1749871685005,0.01825795,105400.0,105390.0,1.02674597]
[1749871685407,0.01825795,105400.0,105390.0,1.00896839]
[1749871685624,0.01825795,105400.0,105390.0,1.02674604]
[1749871686038,0.01825795,105400.0,105390.0,1.0267463]
[1749871686243,0.01825795,105400.0,105390.0,1.02674631]
[1749871686420,0.01825795,105400.0,105390.0,1.00896839]
[1749871686629,0.01825795,105400.0,105390.0,1.02674869]
[1749871686822,0.01825795,105400.0,105390.0,1.00896839]
[1749871687146,0.01825795,105400.0,105390.0,1.02674869]
[1749871687349,0.01825795,105400.0,105390.0,1.00896839]
[1749871687751,0.01784257,105400.0,105390.0,1.02674869]
[1749871687886,0.01784257,105400.0,105390.0,1.00896839]
[1749871688258,0.01784257,105400.0,105390.0,1.0267487]
[1749871688540,0.01784257,105400.0,105390.0,1.02674869]
[1749871688698,0.01784257,105400.0,105390.0,1.00896839]
[1749871689355,0.01784257,105400.0,105390.0,1.02674869]
[1749871689532,0.00244257,105400.0,105390.0,1.02674869]
[1749871689897,0.00244257,105400.0,105390.0,1.04274864]
[1749871690318,0.00244257,105400.0,105390.0,1.02496839]
[1749871690708,0.00244257,105400.0,105390.0,1.04274868]
[1749871690858,0.00244257,105400.0,105390.0,1.04274867]
[1749871691481,0.00244257,105400.0,105390.0,1.02496839]
[1749871691788,0.00244257,105400.0,105390.0,1.04274867]
[1749871692538,0.00244257,105400.0,105390.0,0.94659945]
[1749871692739,0.00244257,105400.0,105390.0,0.92881917]
[1749871693136,0.00244257,105400.0,105390.0,0.94659945]
[1749871693552,0.00244257,105400.0,105390.0,0.92881917]
[1749871693783,0.00244257,105400.0,105390.0,0.94659944]
[1749871693985,0.00244257,105400.0,105390.0,0.94659945]
[1749871694519,0.00244257,105400.0,105390.0,1.04274867]
[1749871695411,0.00244257,105400.0,105390.0,1.0427487]
[1749871696794,0.00244257,105400.0,105390.0,1.02496839]
[1749871697004,0.00244257,105400.0,105390.0,1.0427487]
[1749871698448,0.00244257,105400.0,105390.0,1.04274912]
[1749871699309,0.00244257,105400.0,105390.0,1.02496839]
[1749871699507,0.00244257,105400.0,105390.0,1.04274912]
[1749871699854,0.00244257,105400.0,105390.0,1.02496839]
[1749871700083,0.00244257,105400.0,105390.0,1.04274916]
[1749871700694,0.00244257,105400.0,105390.0,1.02496839]
[1749871700909,0.00244257,105400.0,105390.0,1.04274916]
[1749871701115,0.00244257,105400.0,105390.0,1.02496839]
[1749871701327,0.00244257,105400.0,105390.0,1.04274921]
[1749871701541,0.00244257,105400.0,105390.0,1.04274925]
[1749871701759,0.00244257,105400.0,105390.0,1.04274924]
[1749871701980,0.00244257,105400.0,105390.0,1.02496839]
[1749871702205,0.00244257,105400.0,105390.0,1.04274951]
[1749871702409,0.00244257,105400.0,105390.0,1.02496839]
[1749871703050,0.00244257,105400.0,105390.0,1.04274966]
[1749871703459,0.00244257,105400.0,105390.0,1.04274967]
[1749871705065,0.00244257,105400.0,105390.0,1.02496839]
[1749871705264,0.00244257,105400.0,105390.0,1.04274967]
[1749871705900,0.00244257,105400.0,105390.0,1.06173967]
[1749871706286,0.00244257,105400.0,105390.0,1.04274967]
[1749871707829,0.00244257,105400.0,105390.0,1.02496839]
[1749871708029,0.00244257,105400.0,105390.0,1.04274968]
[1749871708231,0.00244257,105400.0,105390.0,1.02496839]
[1749871708973,0.00244257,105400.0,105390.0,1.04274964]
[1749871709172,0.00244257,105400.0,105390.0,1.04274978]
[1749871709669,0.00244257,105400.0,105390.0,0.88958978]
[1749871709885,0.00244257,105400.0,105390.0,0.93060056]
[1749871710778,0.00244257,105400.0,105390.0,0.91281917]
[1749871711189,0.00244257,105400.0,105390.0,0.93060023]
[1749871711422,0.00244257,105400.0,105390.0,0.91281917]
[1749871711849,0.00244257,105400.0,105390.0,0.93059946]
[1749871712056,0.00244257,105400.0,105390.0,0.91281917]
[1749871712264,0.00244257,105400.0,105390.0,0.93059946]
[1749871712684,0.01774257,105400.0,105390.0,0.93059946]
[1749871712928,0.01774257,105400.0,105390.0,0.93059949]
[1749871714495,0.01774257,105400.0,105390.0,0.91281917]
[1749871714922,0.01774257,105400.0,105390.0,0.93059949]
[1749871715352,0.01774257,105400.0,105390.0,0.91281917]
[1749871715567,0.01774257,105400.0,105390.0,0.93059949]
[1749871716368,0.01774257,105400.0,105390.0,0.91281917]
[1749871716578,0.01774257,105400.0,105390.0,0.93059949]
[1749871717869,0.01774257,105400.0,105390.0,0.77743949]
[1749871718127,0.00244257,105400.0,105390.0,0.93059949]
[1749871718299,0.00244257,105400.0,105390.0,1.00896839]
[1749871718445,0.00244257,105400.0,105390.0,1.02674874]
[1749871718851,0.00244257,105400.0,105390.0,1.00896839]
[1749871719224,0.00244257,105400.0,105390.0,1.02674871]
[1749871719453,0.00244257,105400.0,105390.0,1.00896839]
[1749871719702,0.00244257,105400.0,105390.0,0.75965917]
[1749871719915,0.00244257,105400.0,105390.0,0.93059949]
[1749871721021,0.00244257,105400.0,105390.0,0.91281917]
[1749871721268,0.00244257,105400.0,105390.0,0.93059951]
[1749871722467,0.00244257,105400.0,105390.0,0.93059943]
[1749871725810,0.00244257,105400.0,105390.0,0.91281917]
[1749871726042,0.00244257,105400.0,105390.0,0.94629943]
[1749871726236,0.00244257,105400.0,105390.0,0.94629869]
[1749871726468,0.00244257,105400.0,105390.0,0.94629871]
[1749871726710,0.00244257,105400.0,105390.0,0.9462986]
[1749871726974,0.00244257,105400.0,105390.0,0.94629881]
[1749871727203,0.00244257,105400.0,105390.0,0.9462988]
[1749871728029,0.00244257,105400.0,105390.0,0.9462986]
[1749871728907,0.00244257,105400.0,105390.0,0.94629882]
[1749871729120,0.00244257,105400.0,105390.0,0.94629867]
[1749871729332,0.00244257,105400.0,105390.0,0.92851917]
[1749871730188,0.00244257,105400.0,105390.0,0.94629982]
[1749871730404,0.00244257,105400.0,105390.0,0.9462998]
[1749871730745,0.00244257,105400.0,105390.0,0.94629988]
[1749871731819,0.00244257,105400.0,105390.0,0.94629938]
[1749871732252,0.00244257,105400.0,105390.0,0.92851917]
[1749871732462,0.00244257,105400.0,105390.0,0.94629938]
[1749871733118,0.00244257,105400.0,105390.0,0.94629943]
[1749871733330,0.00244257,105400.0,105390.0,0.92851917]
[1749871733572,0.00244257,105400.0,105390.0,0.94629943]
[1749871733784,0.00244257,105400.0,105390.0,0.92851917]
[1749871733997,0.00244257,105400.0,105390.0,0.94629943]
[1749871735063,0.00244257,105400.0,105390.0,0.92851917]
[1749871735459,0.00244257,105400.0,105390.0,0.94629943]
[1749871735685,0.00244257,105400.0,105390.0,0.98488398]
[1749871736142,0.00244257,105400.0,105390.0,0.96710372]
[1749871736388,0.00244257,105400.0,105390.0,0.98488358]
[1749871736579,0.00244257,105400.0,105390.0,0.96710372]
[1749871736706,0.00244257,105400.0,105390.0,0.98488337]
[1749871736904,0.00244257,105400.0,105390.0,0.98488329]
[1749871737101,0.00244257,105400.0,105390.0,0.96710372]
[1749871737308,0.00244257,105400.0,105390.0,0.98488324]
[1749871737741,0.00244257,105400.0,105390.0,0.9462987]
[1749871737941,0.00244257,105400.0,105390.0,0.94629869]
[1749871738343,0.00244257,105400.0,105390.0,0.94629859]
[1749871738819,0.00244257,105400.0,105390.0,0.94629857]
[1749871739190,0.00244257,105400.0,105390.0,0.94629802]
[1749871739388,0.00244257,105400.0,105390.0,1.02466839]
[1749871739979,0.00244257,105400.0,105390.0,1.04244681]
[1749871740589,0.00244257,105400.0,105390.0,1.02466839]
[1749871740826,0.00244257,105400.0,105390.0,1.04244681]
[1749871741458,0.00244257,105400.0,105390.0,1.02466839]
[1749871741671,0.00244257,105400.0,105390.0,1.04244678]
[1749871742275,0.00244257,105400.0,105390.0,0.94629756]
[1749871742505,0.00244257,105400.0,105390.0,0.94629717]
[1749871742954,0.00244257,105400.0,105390.0,0.94629716]
[1749871743396,0.00244257,105400.0,105390.0,0.92851917]
[1749871743837,0.00244257,105400.0,105390.0,0.94629703]
[1749871744058,0.00244257,105400.0,105390.0,0.94629734]
[1749871744499,0.00244257,105400.0,105390.0,0.96934407]
[1749871744718,0.00244257,105400.0,105390.0,0.9515659]
[1749871744941,0.00244257,105400.0,105390.0,0.96934407]
[1749871745376,0.00244257,105400.0,105390.0,0.9515659]
[1749871745631,0.00244257,105400.0,105390.0,0.94629734]
[1749871746291,0.00244257,105400.0,105390.0,0.94629723]
[1749871746710,0.00244257,105400.0,105390.0,0.92851917]
[1749871746968,0.00244257,105400.0,105390.0,0.94629735]
[1749871747178,0.00244257,105400.0,105390.0,1.01627531]
[1749871747608,0.00244257,105400.0,105390.0,1.01627503]
[1749871748372,0.00244257,105400.0,105390.0,0.94629706]
[1749871751375,0.00244257,105400.0,105390.0,0.92851917]
[1749871751609,0.00244257,105400.0,105390.0,0.94629706]
[1749871751839,0.00244257,105400.0,105390.0,0.94629288]